bitfinex-derivatives/quotes_ETHF0:USTF0_20260308
["timestamp","ask_amount","ask_price","bid_price","bid_amount"]
[1772983585540,2.20574083,1941.1,1940.1,0.00410867]
[1772983585740,2.20574083,1940.4,1939.4,2.15438941]
[1772983586640,2.20574083,1940.4,1939.4,2.15975678]
[1772983587738,2.20574083,1940.4,1939.7,2.15438941]
[1772983590436,2.20574083,1941.1,1939.7,2.15438941]
[1772983590838,2.20574083,1940.9,1939.7,2.15438941]
[1772983591038,2.20574083,1940.9,1940.0,2.15438941]
[1772983591238,7.00591718,1941.2,1940.0,2.15438941]
[1772983591239,7.85030185,1940.8,1940.0,2.15438941]
[1772983591639,2.20574083,1940.8,1940.0,2.15438941]
[1772983592338,0.00432718,1941.2,1940.0,2.15438941]
[1772983592545,2.20574083,1941.1,1940.3,2.15438941]
[1772983593544,2.09994033,1940.9,1940.3,2.15438941]
[1772983595346,2.09994033,1941.1,1940.3,2.15438941]
[1772983595646,2.09994033,1941.0,1940.3,2.15438941]
[1772983597747,2.10426751,1941.2,1940.3,2.15438941]
[1772983599449,2.09994033,1941.0,1940.3,2.15438941]
[1772983603652,2.09994033,1941.0,1940.5,4.11622474]
[1772983603952,2.09994033,1941.0,1940.6,2.05248509]
[1772983608662,0.00432718,1941.2,1940.6,2.05248509]
[1772983608851,2.08138629,1942.0,1941.0,2.05248509]
[1772983609156,5.73639944,1941.9,1941.0,2.05248509]
[1772983609356,2.08138629,1941.8,1941.0,2.05248509]
[1772983609758,2.06118411,1941.6,1941.0,2.05784316]
[1772983610161,2.06118411,1941.4,1941.0,2.05784316]
[1772983610362,0.00561548,1941.8,1941.0,2.05784316]
[1772983610363,0.00561548,1941.8,1941.2,2.09396652]
[1772983610554,5.57940233,1941.6,1941.2,2.09396652]
[1772983610755,0.13475435,1941.6,1941.2,2.09396652]
[1772983611165,0.00561548,1941.8,1941.4,2.09396652]
[1772983611458,2.32117965,1942.3,1941.4,2.09396652]
[1772983611658,0.50485698,1942.2,1941.3,4.22894585]
[1772983611858,0.50485698,1942.1,1941.3,4.22894585]
[1772983612252,0.50485698,1941.9,1941.3,4.22894585]
[1772983612453,0.50485698,1941.9,1941.3,2.1652062]
[1772983612659,0.0060518,1942.1,1941.3,2.1652062]
[1772983612660,0.53142405,1941.7,1941.3,2.1652062]
[1772983613255,0.53142405,1941.7,1941.1,2.06373965]
[1772983613456,0.53372976,1941.5,1941.0,2.15430365]
[1772983614964,0.5062515,1942.0,1941.2,2.14934456]
[1772983615370,0.51246131,1941.9,1941.2,2.14934456]
[1772983615765,0.4965052,1941.7,1941.2,2.14934456]
[1772983616163,3.65603529,1941.6,1941.2,2.14934456]
[1772983616570,0.4965052,1941.6,1941.2,2.14934456]
[1772983620571,0.4965052,1941.6,1941.0,0.00535807]
[1772983620572,0.4965052,1941.6,1941.0,2.15872595]
[1772983621577,6.22854702,1941.5,1941.0,2.15872595]
[1772983621777,0.37741604,1941.4,1941.0,2.15872595]
[1772983621979,0.37741604,1941.4,1941.0,0.00535807]
[1772983622173,0.37741604,1941.2,1941.0,0.00535807]
[1772983622374,0.37741604,1941.2,1940.9,2.15950972]
[1772983622575,0.37655783,1941.5,1940.9,2.15950972]
[1772983622978,0.36294948,1941.3,1940.9,2.15950972]
[1772983623274,0.36294948,1941.3,1940.9,2.16543085]
[1772983625279,0.36294948,1941.3,1940.9,1.39191211]
[1772983625676,1.08418305,1941.1,1940.6,2.23849306]
[1772983626778,1.12274865,1940.9,1940.4,2.23849306]
[1772983627182,1.52098498,1940.8,1940.4,2.23849306]
[1772983627583,1.12274865,1940.8,1940.4,2.23849306]
[1772983627780,1.12274865,1940.8,1940.4,2.24301427]
[1772983629578,1.08602254,1941.1,1940.4,2.24301427]
[1772983629981,6.57150717,1941.1,1940.4,2.24301427]
[1772983630180,1.08602254,1941.0,1940.4,2.24301427]
[1772983643092,0.89313268,1940.8,1940.4,2.24301427]
[1772983645195,0.94908383,1940.6,1940.3,1.59055191]
[1772983645395,0.94908383,1940.6,1939.8,2.23849306]
[1772983645694,7.25344346,1940.5,1939.8,2.23849306]
[1772983645893,7.25344346,1940.5,1940.0,2.23849306]
[1772983646093,1.49932883,1940.5,1940.0,2.24298482]
[1772983646393,0.00581001,1940.5,1940.0,2.24298482]
[1772983651094,5.47070603,1940.4,1940.0,2.24298482]
[1772983651293,1.44129788,1940.3,1940.0,2.24298482]
[1772983651894,1.44129788,1940.3,1940.0,0.00449176]
[1772983652096,6.9193702,1940.2,1940.0,0.00449176]
[1772983652599,1.54384084,1940.5,1940.0,2.24298482]
[1772983652897,5.75885839,1940.4,1940.0,2.24298482]
[1772983657301,1.46067006,1940.7,1940.2,2.0933794]
[1772983657694,1.44736475,1940.6,1940.2,2.0933794]
[1772983657997,4.93589439,1940.5,1940.2,2.0933794]
[1772983658399,0.00586331,1940.5,1940.2,2.0933794]
[1772983658599,1.44670585,1940.8,1940.2,2.0933794]
[1772983659002,7.10858753,1940.7,1940.2,2.0933794]
[1772983659201,5.66884075,1940.7,1940.2,2.0933794]
[1772983659503,0.00494202,1940.7,1940.2,2.0933794]
[1772983659703,6.8159589,1940.7,1940.2,2.0933794]
[1772983660002,1.42324072,1940.6,1940.2,2.0933794]
[1772983664911,0.00494202,1940.7,1940.2,2.0933794]
[1772983665507,5.83708399,1940.6,1940.2,2.0933794]
[1772983665707,1.36777594,1940.5,1940.2,2.0933794]
[1772983665908,7.19214673,1940.6,1940.2,2.0933794]
[1772983666201,1.35506274,1940.6,1940.2,2.0933794]
[1772983670322,1.30819375,1940.7,1940.2,2.0933794]
[1772983670624,5.57985244,1940.6,1940.2,2.0933794]
[1772983671424,6.87526421,1940.6,1940.2,2.0933794]
[1772983671724,5.57985244,1940.6,1940.2,2.0933794]
[1772983672118,1.28312334,1940.5,1940.2,2.0933794]
[1772983672424,1.28312334,1940.5,1940.1,2.0933794]
[1772983672623,1.28740762,1940.7,1940.1,2.0933794]
[1772983673025,5.43248485,1940.6,1940.1,2.0933794]
[1772983675427,6.67642736,1940.6,1940.1,2.0933794]
[1772983676117,5.43248485,1940.6,1940.1,2.0933794]
[1772983677427,6.65121741,1940.6,1940.1,2.0933794]
[1772983680631,1.16991715,1940.5,1940.1,2.0933794]
[1772983681129,0.00494202,1940.7,1940.1,2.0933794]
[1772983681327,1.16991715,1940.6,1940.1,2.0933794]
[1772983681527,1.1694857,1940.5,1940.1,2.0933794]
[1772983681827,1.15786136,1940.6,1940.1,2.0933794]
[1772983682432,0.00494202,1940.7,1940.1,2.0933794]
[1772983690539,1.06953675,1940.7,1940.1,2.0933794]
[1772983699637,0.00494202,1940.7,1940.1,2.0933794]
[1772983704938,0.89723732,1940.7,1940.1,2.0933794]
[1772983719858,0.00494202,1940.7,1940.1,2.0933794]
[1772983723962,0.68630226,1940.7,1940.1,2.0933794]
[1772983731668,0.00494202,1940.7,1940.1,2.0933794]
[1772983742478,0.51430422,1940.7,1940.1,2.0933794]
[1772983743676,0.00494202,1940.7,1940.1,2.0933794]
[1772983745077,0.48163643,1940.7,1940.1,2.0933794]
[1772983749176,0.44570373,1940.3,1940.0,0.00449176]
[1772983749378,0.44089949,1940.1,1939.7,1.61281216]
[1772983749784,6.06489882,1940.0,1939.7,1.61281216]
[1772983750079,5.63214273,1940.1,1939.8,1.61281216]
[1772983750288,0.43275609,1940.4,1939.8,1.61717058]
[1772983750677,5.94814387,1940.3,1939.8,1.61717058]
[1772983751183,0.42497763,1940.1,1939.8,1.61717058]
[1772983751386,0.42497763,1940.1,1939.8,0.00435842]
[1772983751580,6.08225066,1940.0,1939.8,0.00435842]
[1772983751781,0.38116628,1939.9,1939.6,1.61281216]
[1772983751980,0.38116628,1939.9,1939.2,1.61281216]
[1772983752382,0.38086375,1940.3,1939.4,1.61281216]
[1772983752685,5.39667259,1940.1,1939.4,1.61281216]
[1772983752983,0.3728306,1940.1,1939.4,1.61676313]
[1772983753282,5.39667259,1940.0,1939.4,1.61676313]
[1772983753983,5.7585324,1940.0,1939.4,1.61676313]
[1772983754385,0.36157845,1940.1,1939.4,1.61676313]
[1772983754585,5.49248996,1939.9,1939.4,1.61676313]
[1772983754780,5.49248996,1940.0,1939.4,1.61676313]
[1772983754977,0.36157845,1940.1,1939.4,1.61676313]
[1772983755177,5.49248996,1940.0,1939.4,1.61676313]
[1772983757790,5.54897235,1940.1,1939.4,1.61676313]
[1772983757991,5.86554787,1940.1,1939.4,1.61676313]
[1772983758192,0.31657552,1940.1,1939.4,1.61676313]
[1772983758492,5.54897235,1940.0,1939.4,1.61676313]
[1772983758690,0.30849394,1939.9,1939.4,1.61676313]
[1772983759595,0.3068885,1939.7,1939.4,0.00395097]
[1772983759892,0.55813463,1939.6,1939.2,1.61281216]
[1772983760090,0.29910006,1939.5,1939.2,1.61281216]
[1772983760795,0.29910006,1939.5,1939.2,1.61676658]
[1772983761099,0.29910006,1939.5,1939.2,0.00395442]
[1772983761796,0.28229796,1939.3,1939.0,1.61281216]
[1772983762092,2.06470257,1939.6,1938.1,40.8]
[1772983762093,0.28229796,1939.0,1938.6,1.61281216]
[1772983762292,0.28229796,1939.0,1938.2,1.61281216]
[1772983762491,0.28205079,1938.8,1938.2,1.61281216]
[1772983762688,0.28738184,1938.8,1938.2,1.61819378]
[1772983762893,5.95704981,1938.7,1938.2,1.61819378]
[1772983763589,0.27164909,1938.6,1938.2,1.61819378]
[1772983763794,1.63345326,1938.4,1937.5,1.61281216]
[1772983764086,5.42093038,1938.5,1937.9,1.61281216]
[1772983764292,1.63345326,1938.6,1937.9,1.61281216]
[1772983764695,5.96860839,1938.5,1937.9,1.61782912]
[1772983764894,7.60206165,1938.5,1937.9,1.61782912]
[1772983765086,1.63345326,1938.4,1937.9,1.61782912]
[1772983765289,7.60206165,1938.7,1938.1,1.61281216]
[1772983765491,1.63345326,1938.7,1938.1,1.61281216]
[1772983765687,1.63345326,1938.5,1938.1,1.61281216]
[1772983765990,7.18640119,1938.4,1938.1,1.61281216]
[1772983766493,1.63345326,1938.4,1938.1,1.61281216]
[1772983767097,1.63345326,1938.4,1937.9,1.61782912]
[1772983767392,7.20779241,1938.3,1937.9,1.61782912]
[1772983767791,1.63345326,1938.3,1937.9,1.61782912]
[1772983768396,1.63345326,1938.6,1938.1,1.61281216]
[1772983768696,7.05279928,1938.6,1938.1,1.61281216]
[1772983768997,1.63345326,1938.5,1938.1,1.61281216]
[1772983769393,1.63345326,1938.7,1938.1,1.61281216]
[1772983769792,1.63345326,1938.6,1938.1,1.61281216]
[1772983770297,5.60218229,1938.5,1938.1,1.61281216]
[1772983770694,0.00533105,1938.8,1938.3,1.61281216]
[1772983770895,1.63878431,1938.8,1938.3,1.61281216]
[1772983771093,5.45601441,1938.7,1938.3,1.61281216]
[1772983771496,1.63345326,1939.0,1938.5,1.61281216]
[1772983771696,1.63345326,1939.3,1938.5,1.61281216]
[1772983771998,1.63345326,1939.2,1938.5,1.61281216]
[1772983772395,3.96790805,1939.1,1938.5,1.61281216]
[1772983772591,3.97424413,1939.1,1938.5,1.61281216]
[1772983772794,1.63978934,1939.1,1938.0,1.7291932]
[1772983773100,1.78192573,1938.9,1938.1,1.7291932]
[1772983773593,0.00633608,1939.1,1938.3,1.7291932]
[1772983773594,7.1885789,1938.8,1938.3,1.7291932]
[1772983773800,1.78192573,1939.0,1938.3,1.7291932]
[1772983774099,2.93492958,1938.9,1938.3,1.7291932]
[1772983774297,6.78943817,1939.0,1938.3,1.7291932]
[1772983774493,1.78192573,1939.0,1938.3,1.7291932]
[1772983774896,5.4055437,1938.9,1938.3,1.7291932]
[1772983775097,7.18746943,1938.9,1938.3,1.7291932]
[1772983776599,1.78192573,1938.8,1938.3,1.7291932]
[1772983777102,1.40429979,1938.7,1938.5,1.7291932]
[1772983777301,1.78192573,1939.0,1938.5,1.7291932]
[1772983777502,1.78192573,1938.9,1938.5,1.7291932]
[1772983777693,0.00633608,1939.1,1938.5,1.7291932]
[1772983778001,1.78192573,1939.0,1938.5,1.7291932]
[1772983778197,1.78192573,1938.9,1938.2,2.06470257]
[1772983778400,1.78192573,1938.9,1938.3,1.7291932]
[1772983781707,1.78192573,1938.5,1937.9,1.73421016]
[1772983782102,1.92490792,1938.4,1938.0,1.7291932]
[1772983782305,1.78192573,1938.9,1938.4,1.7291932]
[1772983782504,1.78192573,1939.3,1938.6,1.7291932]
[1772983783204,1.78192573,1939.7,1938.8,1.7291932]
[1772983783607,4.5656477,1939.3,1938.8,1.7291932]
[1772983784306,4.57065654,1939.3,1938.8,1.7291932]
[1772983785906,1.78192573,1939.2,1938.7,1.7291932]
[1772983786204,1.78192573,1939.1,1938.1,1.7291932]
[1772983786601,1.78192573,1938.9,1938.1,1.7291932]
[1772983786906,1.78192573,1938.7,1937.9,1.73421016]
[1772983787296,2.02145959,1938.6,1937.9,1.73421016]
[1772983787707,1.78192573,1938.6,1937.9,1.73421016]
[1772983787903,1.19733989,1938.5,1937.9,1.73421016]
[1772983788800,1.78693457,1939.3,1938.5,1.7291932]
[1772983789204,1.78192573,1939.0,1938.1,1.7291932]
[1772983789807,1.78192573,1938.8,1938.1,1.7291932]
[1772983790107,1.94159438,1938.7,1938.1,1.7291932]
[1772983790506,1.78192573,1938.7,1938.1,1.7291932]
[1772983792702,1.78192573,1939.2,1938.1,1.7291932]
[1772983793008,1.78192573,1939.1,1938.1,1.7291932]
[1772983793405,1.94156967,1939.0,1938.1,1.7291932]
[1772983793801,1.78192573,1939.0,1938.1,1.7291932]
[1772983794812,1.78192573,1939.2,1938.1,1.7291932]
[1772983795112,5.23004933,1939.2,1938.1,1.7291932]
[1772983795413,1.78192573,1939.1,1938.1,1.7291932]
[1772983795912,1.78192573,1938.9,1938.1,1.7291932]
[1772983796306,1.78192573,1938.7,1938.1,1.7291932]
[1772983797911,1.78192573,1938.5,1937.9,1.73421016]
[1772983798116,3.92710483,1938.6,1937.9,1.73421016]
[1772983798317,1.78192573,1938.7,1937.9,1.73421016]
[1772983799811,1.78192573,1938.7,1937.7,1.7291932]
[1772983800112,1.78192573,1938.5,1937.4,1.7291932]
[1772983800419,1.78192573,1938.3,1937.4,1.7291932]
[1772983800920,1.78192573,1938.1,1937.4,0.00506535]
[1772983801418,1.78192573,1937.9,1937.4,0.00506535]
[1772983801614,1.78785227,1937.9,1937.4,1.73425855]
[1772983801819,2.02162031,1937.8,1937.4,1.73425855]
[1772983802015,1.78192573,1937.8,1937.4,1.73425855]
[1772983802916,1.78192573,1937.8,1937.4,0.00506535]
[1772983803113,1.97702124,1937.6,1937.2,1.81311295]
[1772983803314,1.98294778,1937.9,1937.2,1.81311295]
[1772983803616,0.00592654,1937.9,1937.2,1.81311295]
[1772983803921,1.98294778,1937.9,1937.2,1.81311295]
[1772983804214,1.97702124,1937.7,1936.7,2.16458274]
[1772983804411,1.97702124,1937.7,1936.7,1.90641274]
[1772983804612,1.87867299,1937.5,1936.7,1.90641274]
[1772983804813,0.55948947,1937.6,1936.7,1.90641274]
[1772983805017,1.87867299,1937.6,1936.7,1.90641274]
[1772983805222,1.87867299,1937.6,1936.7,1.91041179]
[1772983806522,1.87867299,1937.8,1936.9,1.90641274]
[1772983806920,7.48913009,1937.8,1936.9,1.90641274]
[1772983808017,1.88459953,1937.9,1936.9,1.90641274]
[1772983809620,1.88459953,1937.9,1936.7,0.00399905]
[1772983809824,1.87867299,1937.7,1936.8,1.90641274]
[1772983810325,1.87867299,1937.5,1936.8,1.90641274]
[1772983812523,1.87867299,1937.3,1936.8,1.90641274]
[1772983813523,1.87867299,1937.8,1936.8,1.90641274]
[1772983813927,1.87867299,1937.7,1936.8,1.90641274]
[1772983814121,1.87867299,1937.7,1936.7,0.00399905]
[1772983814320,1.87867299,1937.5,1936.3,1.90641274]
[1772983814528,1.87867299,1937.5,1935.9,1.90641274]
[1772983814729,1.87867299,1937.3,1935.9,1.90641274]
[1772983815125,1.87867299,1937.1,1935.9,1.90641274]
[1772983815323,1.87867299,1937.1,1935.9,1.91050582]
[1772983815524,1.87867299,1936.9,1935.9,1.91050582]
[1772983816022,1.87867299,1936.7,1935.9,1.91050582]
[1772983816422,1.87867299,1936.5,1935.9,1.91050582]
[1772983816726,1.87867299,1937.8,1936.1,1.90641274]
[1772983816916,1.87867299,1937.8,1936.3,1.90641274]
[1772983817121,1.87867299,1937.2,1936.5,1.90641274]
[1772983817629,1.87867299,1937.0,1936.4,2.16463274]
[1772983817927,1.87867299,1937.0,1936.2,1.90641274]
[1772983818127,5.79246805,1936.9,1936.2,1.90641274]
[1772983818325,7.67114104,1936.9,1936.2,1.90641274]
[1772983819022,1.87867299,1936.8,1936.2,1.90641274]
[1772983819724,1.87867299,1937.0,1936.2,1.90641274]
[1772983820121,1.87867299,1936.8,1936.2,1.90641274]
[1772983822028,1.87867299,1937.1,1936.2,1.90641274]
[1772983822426,5.91317485,1937.1,1936.2,1.90641274]
[1772983822629,1.87867299,1937.0,1936.2,1.90641274]
[1772983823322,1.87867299,1936.8,1936.0,1.90641274]
[1772983823724,1.87867299,1936.8,1935.9,0.00409308]
[1772983823725,1.87867299,1936.6,1935.9,1.91050582]
[1772983824232,1.87867299,1936.7,1935.9,1.91050582]
[1772983825228,1.87867299,1936.9,1936.3,1.90641274]
[1772983825533,1.87867299,1937.0,1936.3,1.90641274]
[1772983826728,0.00536257,1937.2,1936.5,1.90641274]
[1772983827526,0.00536257,1937.2,1936.4,13.09122]
[1772983827527,0.00536257,1937.2,1936.7,1.90641274]
[1772983827734,0.00536257,1937.2,1936.4,12.833]
[1772983827735,1.87867299,1937.7,1936.9,1.90641274]
[1772983828737,1.88488608,1937.7,1936.9,1.90641274]
[1772983829938,0.00621309,1937.7,1936.9,1.90641274]
[1772983830233,1.87867299,1938.5,1937.1,1.90641274]
[1772983830534,1.87867299,1938.4,1937.1,1.90641274]
[1772983830927,1.87867299,1938.4,1937.2,1.90641274]
[1772983831132,1.87867299,1938.2,1937.2,1.90641274]
[1772983831533,1.87867299,1938.0,1937.2,1.90641274]
[1772983831933,1.87867299,1937.8,1937.2,1.90641274]
[1772983833037,1.69373631,1937.6,1936.9,1.7622325]
[1772983840841,1.69373631,1938.1,1936.9,1.7622325]
[1772983841236,1.69373631,1938.0,1936.9,1.7622325]
[1772983841642,1.69373631,1937.8,1936.9,1.7622325]
[1772983843239,1.69373631,1937.8,1936.9,2.0203825]
[1772983843438,1.69373631,1938.1,1936.9,2.0203825]
[1772983843840,1.69373631,1938.0,1936.9,2.0203825]
[1772983844746,0.00574268,1938.2,1937.4,1.7622325]
[1772983844947,1.69947899,1938.2,1937.6,1.7622325]
[1772983845443,0.00574268,1938.2,1937.6,1.7622325]
[1772983846546,1.69947899,1938.2,1937.6,1.7622325]
[1772983847142,1.69947899,1938.2,1937.4,0.00414907]
[1772983847349,1.69373631,1938.0,1937.4,13.39814907]
[1772983847550,1.69373631,1938.0,1937.1,1.7622325]
[1772983847749,1.69373631,1937.8,1937.1,1.7622325]
[1772983848348,0.55931211,1937.7,1937.0,13.419]
[1772983848647,1.69373631,1937.6,1937.0,15.18617828]
[1772983848851,1.69373631,1937.6,1937.1,1.7622325]
[1772983850058,1.69373631,1938.1,1937.1,1.7622325]
[1772983850359,1.69373631,1938.0,1937.1,1.7622325]
[1772983850655,0.15981701,1937.9,1937.1,1.7622325]
[1772983850856,1.69373631,1937.8,1937.1,1.7622325]
[1772983852659,1.69373631,1937.6,1937.1,1.7622325]
[1772983859463,1.69373631,1938.1,1937.1,1.7622325]
[1772983859863,1.69373631,1938.0,1937.1,1.7622325]
[1772983860766,1.69373631,1938.0,1937.1,2.0203525]
[1772983860967,1.69947899,1938.2,1937.1,2.0203525]
[1772983862866,1.63212403,1938.0,1937.1,2.0203525]
[1772983867376,1.61914587,1938.1,1937.1,2.0203525]
[1772983867674,1.62488855,1938.2,1937.1,2.0203525]
[1772983869574,1.62488855,1938.2,1937.3,1.81146124]
[1772983870074,0.00574268,1938.2,1937.3,1.81146124]
[1772983870270,1.62488855,1938.2,1937.3,1.81146124]
[1772983871276,0.00574268,1938.2,1937.3,1.81146124]
[1772983872778,0.00574268,1938.2,1937.6,1.55336124]
[1772983873076,0.00574268,1938.2,1937.8,1.55336124]
[1772983873576,1.61914587,1938.4,1937.8,1.55336124]
[1772983874077,1.61914587,1938.5,1937.8,1.55336124]
[1772983874577,1.62329366,1938.5,1937.8,1.55336124]
[1772983875572,0.00414779,1938.5,1937.8,1.55336124]
[1772983875777,1.62329366,1938.5,1937.8,1.55336124]
[1772983876179,1.62329366,1938.5,1937.9,1.55336124]
[1772983876372,3.19553798,1939.7,1937.9,1.81137124]
[1772983876373,1.61914587,1938.9,1937.9,1.81137124]
[1772983877479,1.62335263,1938.9,1937.9,1.81137124]
[1772983879979,1.61914587,1939.1,1938.1,1.81135124]
[1772983880179,1.61914587,1939.1,1938.3,1.55336124]
[1772983880778,1.61914587,1939.1,1938.4,15.31736124]
[1772983880981,1.62362227,1939.1,1938.4,15.32167074]
[1772983881676,1.62362227,1939.1,1938.5,1.55336124]
[1772983883481,0.0044764,1939.1,1938.5,1.55336124]
[1772983884680,1.61914587,1939.2,1938.5,1.55336124]
[1772983884681,1.61914587,1939.3,1938.5,1.55336124]
[1772983884974,0.25775,1940.0,1938.5,1.55336124]
[1772983884975,1.61914587,1939.8,1938.5,1.55336124]
[1772983885180,1.61914587,1939.8,1938.7,1.55336124]
[1772983885483,1.61914587,1939.6,1938.7,1.55336124]
[1772983885781,1.62351766,1939.6,1938.7,1.55336124]
[1772983886378,1.62351766,1939.6,1938.8,15.32736124]
[1772983886582,1.62351766,1939.6,1938.6,1.55336124]
[1772983886786,1.61914587,1939.4,1938.7,13.776]
[1772983887076,1.61914587,1939.4,1938.7,15.32936124]
[1772983888076,1.61914587,1939.4,1938.7,1.55336124]
[1772983888283,1.61914587,1939.4,1938.8,13.764]
[1772983889281,1.61914587,1939.4,1938.5,1.55336124]
[1772983889476,1.61914587,1939.2,1938.6,13.728]
[1772983889881,1.61914587,1939.2,1938.7,1.55336124]
[1772983890077,1.61914587,1939.4,1938.7,1.55336124]
[1772983891585,1.61914587,1939.4,1938.8,13.728]
[1772983892585,1.61914587,1939.4,1938.8,15.20641987]
[1772983893186,1.61914587,1939.4,1938.9,1.47841987]
[1772983897890,1.50392961,1939.5,1938.9,1.47841987]
[1772983898790,1.5083014,1939.6,1938.9,1.73629987]
[1772983899295,1.5083014,1939.6,1939.0,13.76]
[1772983899496,1.5083014,1939.6,1939.1,13.761]
[1772983900294,1.5083014,1939.6,1939.1,15.23941987]
[1772983901499,1.5083014,1939.6,1938.9,1.47841987]
[1772983901897,1.5083014,1939.6,1939.0,13.766]
[1772983902098,1.50392961,1939.4,1938.5,13.766]
[1772983902397,0.47870955,1939.3,1938.5,13.766]
[1772983902599,1.50392961,1939.2,1938.5,13.766]
[1772983902999,1.50392961,1939.0,1938.5,15.24441987]
[1772983903591,1.50392961,1939.0,1938.1,1.47841987]
[1772983903794,1.50392961,1938.8,1938.0,15.24741987]
[1772983904294,1.50392961,1938.6,1938.0,15.24741987]
[1772983904699,1.50392961,1938.6,1938.0,15.25385514]
[1772983908196,1.50392961,1938.6,1938.1,1.47841987]
[1772983912298,1.50392961,1938.6,1938.0,0.00643527]
[1772983912504,1.50392961,1938.6,1938.2,1.47841987]
[1772983912804,1.50392961,1938.6,1938.1,15.25741987]
[1772983914200,1.50392961,1938.8,1938.2,1.47841987]
[1772983919210,1.50392961,1939.4,1938.4,1.47841987]
[1772983919612,1.50392961,1939.2,1938.2,1.47841987]
[1772983919911,1.50392961,1939.0,1938.2,1.47841987]
[1772983920311,1.50392961,1938.8,1938.2,1.47841987]
[1772983920712,1.50392961,1938.8,1938.3,13.776]
[1772983921614,1.50392961,1938.8,1938.3,15.25441987]
[1772983922310,1.50392961,1938.8,1938.3,13.776]
[1772983922513,1.40863086,1938.6,1938.1,15.25341987]
[1772983922913,1.40863086,1938.6,1938.2,1.35116028]
[1772983924920,1.36752457,1939.4,1938.2,1.35116028]
[1772983925316,1.36752457,1939.3,1938.2,1.35116028]
[1772983925623,0.15961924,1939.2,1938.2,1.35116028]
[1772983925822,1.36752457,1939.1,1938.2,1.35116028]
[1772983926117,1.36752457,1938.9,1938.2,1.35116028]
[1772983926618,1.36752457,1938.7,1938.0,0.00643527]
[1772983927022,1.36752457,1938.5,1938.0,0.00643527]
[1772983927419,1.36752457,1938.3,1938.0,0.00643527]
[1772983927617,1.36752457,1938.3,1938.0,1.42890309]
[1772983927822,1.36752457,1938.3,1938.0,0.00643527]
[1772983931124,1.36752457,1938.3,1937.4,1.42246782]
[1772983931324,1.36752457,1938.1,1937.6,15.18246782]
[1772983931526,1.36752457,1938.1,1937.6,13.76]
[1772983931921,0.47925314,1938.0,1937.7,1.42246782]
[1772983932126,0.00660781,1938.0,1937.7,1.42697471]
[1772983932420,4.56529772,1939.1,1937.7,1.42697471]
[1772983932421,1.36752457,1939.0,1937.7,1.42697471]
[1772983932823,1.36752457,1938.9,1937.7,1.42697471]
[1772983933222,1.36752457,1938.7,1937.7,1.42697471]
[1772983934827,1.37169166,1938.9,1937.7,1.68500471]
[1772983941038,0.00416709,1938.9,1938.2,1.42246782]
[1772983941238,0.00416709,1938.9,1938.4,1.42246782]
[1772983942036,1.37169166,1938.9,1938.5,15.16446782]
[1772983942636,1.37169166,1938.9,1938.5,13.742]
[1772983943135,1.37169166,1938.9,1938.5,15.16446782]
[1772983944034,1.37169166,1938.9,1938.5,13.742]
[1772983946740,1.37169166,1938.9,1938.2,1.42246782]
[1772983946936,1.36752457,1938.7,1938.2,1.42246782]
[1772983948040,1.36752457,1938.8,1938.2,1.42246782]
[1772983948436,1.36752457,1938.7,1938.2,1.42246782]
[1772983950340,0.00416709,1938.9,1938.2,1.42246782]
[1772983951337,0.00416709,1938.9,1938.4,1.42246782]
[1772983951641,1.37169166,1938.9,1938.4,1.42246782]
[1772983951842,0.00416709,1938.9,1938.4,1.42246782]
[1772983953143,1.28163649,1939.2,1938.4,1.42246782]
[1772983953444,1.28163649,1939.6,1938.4,1.42246782]
[1772983953838,1.28163649,1939.4,1938.6,1.3701324]
[1772983954143,1.28654663,1939.4,1938.8,1.3701324]
[1772983954441,0.00491014,1939.4,1938.8,1.3701324]
[1772983955445,4.30742772,1940.6,1938.7,13.415]
[1772983955446,1.28163649,1940.5,1939.0,1.3701324]
[1772983955743,1.28163649,1940.1,1939.0,1.3701324]
[1772983956445,3.37345127,1940.0,1939.0,1.3701324]
[1772983956643,1.28790106,1940.1,1939.0,1.3701324]
[1772983957747,1.28163649,1939.9,1939.2,1.3701324]
[1772983957945,1.28163649,1939.9,1939.2,1.37644934]
[1772983962643,1.28163649,1939.7,1939.2,1.37644934]
[1772983964850,1.28163649,1939.8,1939.2,1.37644934]
[1772983965150,1.28163649,1939.9,1939.2,1.37644934]
[1772983969259,1.28790106,1940.1,1939.2,1.37644934]
[1772983972659,1.28163649,1939.9,1939.2,1.37644934]
[1772983984772,1.28163649,1939.9,1939.4,1.21856408]
[1772983986271,1.28163649,1939.9,1939.2,1.22488102]
[1772983987575,0.00626457,1940.1,1939.4,1.21856408]
[1772983987776,1.26050862,1940.1,1939.4,1.21856408]
[1772983996077,0.00626457,1940.1,1939.6,1.21856408]
[1772983996577,1.26050862,1940.1,1939.6,1.21856408]
[1772984000682,1.26050862,1940.1,1939.5,1.21856408]
[1772984010486,1.26050862,1940.1,1939.3,0.25782]
[1772984010793,1.25424405,1939.9,1939.2,1.22488102]
[1772984018589,1.16676761,1939.7,1939.2,0.00631694]
[1772984018797,1.16676761,1939.7,1939.0,14.70268575]
[1772984019098,1.16676761,1939.5,1939.1,1.13468575]
[1772984019297,1.16676761,1939.5,1939.0,1.13468575]
[1772984019791,1.16676761,1939.5,1939.0,1.13985757]
[1772984020794,1.16676761,1940.0,1939.2,1.13468575]
[1772984021094,1.16676761,1939.9,1939.2,1.13468575]
[1772984021494,1.16676761,1939.9,1939.3,3.20116202]
[1772984021689,1.16676761,1940.0,1939.4,1.13468575]
[1772984022398,0.00626457,1940.1,1939.6,1.13468575]
[1772984022992,1.17303218,1940.1,1939.6,1.13468575]
[1772984023691,0.00626457,1940.1,1939.6,1.13468575]
[1772984025694,1.17303218,1940.1,1939.6,1.13468575]
[1772984025995,1.17303218,1940.1,1939.3,1.13468575]
[1772984026588,1.16676761,1939.9,1939.3,1.13468575]
[1772984029595,1.17303218,1940.1,1939.6,1.13468575]
[1772984030992,0.00626457,1940.1,1939.6,1.13468575]
[1772984035103,1.16676761,1940.5,1939.6,1.13468575]
[1772984036101,1.17075892,1940.5,1939.6,1.13468575]
[1772984039196,1.17075892,1940.5,1939.7,0.25778]
[1772984039403,1.17075892,1940.5,1939.9,1.13468575]
[1772984043698,1.17075892,1940.5,1939.2,0.25784]
[1772984043905,1.07838608,1940.3,1939.4,1.12381102]
[1772984044104,1.07838608,1940.3,1939.3,13.075]
[1772984044105,1.07838608,1940.3,1939.6,1.12381102]
[1772984045302,1.06908766,1940.1,1939.5,14.07134012]
[1772984046204,1.06908766,1940.1,1939.5,13.008]
[1772984046607,1.06908766,1940.1,1939.5,14.07134012]
[1772984049109,1.06908766,1940.1,1939.6,1.06334012]
[1772984050315,1.06908766,1940.1,1939.5,13.008]
[1772984051412,1.06908766,1939.9,1939.4,1.06334012]
[1772984051712,1.06908766,1939.9,1939.3,14.33134012]
[1772984055221,1.06908766,1939.9,1939.4,1.06334012]
[1772984061827,1.06908766,1939.9,1939.3,14.33134012]
[1772984063729,2.01206893,1939.8,1939.3,14.33134012]
[1772984063927,1.06908766,1939.7,1939.3,14.33134012]
[1772984064733,1.06908766,1939.7,1939.2,1.06334012]
[1772984064931,1.06908766,1939.5,1939.1,1.06334012]